lending/lending_fUSD_20251107
["ID","MTS","AMOUNT","RATE_DAILY","PERIOD"]
[393333576,1762486261876,-1000.0,0.00037521,7]
[393333577,1762486261885,-150.0,0.00037562,7]
[393333578,1762486261895,-300.0,0.00037577,2]
[393333579,1762486261905,-160.40840599,0.00037589,30]
[393333580,1762486261914,-4268.45482343,0.0003759,2]
[393333581,1762486261924,-1005.0,0.000376,7]
[393333582,1762486261934,-150.0,0.000376,120]
[393333583,1762486261944,-500.0,0.00037602,30]
[393333584,1762486261953,-1000.0,0.00037611,7]
[393333585,1762486261963,-500.0,0.0003762,30]
[393333586,1762486261973,-283.75273937,0.00037645,7]
[393333587,1762486261983,-1000.0,0.0003766,7]
[393333588,1762486261992,-1000.0,0.00037673,7]
[393333589,1762486262003,-3388.54684246,0.00037685,10]
[393333590,1762486262013,-152.0,0.00037692,34]
[393333591,1762486262022,-362.43,0.000377,120]
[393333592,1762486262032,-300.0,0.000377,15]
[393333593,1762486262043,-1000.0,0.000377,7]
[393333594,1762486262052,-200.0,0.00037706,2]
[393333595,1762486262062,-200.0,0.00037706,2]
[393333596,1762486262073,-200.0,0.00037706,2]
[393333597,1762486262083,-200.0,0.00037706,2]
[393333598,1762486262271,-200.0,0.00037706,2]
[393333599,1762486262281,-294.0,0.00037706,2]
[393333600,1762486262292,-500.0,0.00037706,120]
[393333601,1762486262302,-500.0,0.00037706,120]
[393333602,1762486262312,-231.0,0.00037706,120]
[393333603,1762486262323,-500.0,0.00037706,120]
[393333604,1762486262332,-500.0,0.00037706,120]
[393333605,1762486262341,-500.0,0.00037706,120]
[393333606,1762486262351,-500.0,0.00037706,120]
[393333607,1762486262360,-176.0,0.00037706,13]
[393333608,1762486262373,-511.26,0.00037712,7]
[393333609,1762486262382,-500.0,0.00037712,7]
[393333610,1762486262392,-500.0,0.00037712,7]
[393333611,1762486262401,-207.02,0.00037712,7]
[393333612,1762486262411,-548.34,0.00037712,7]
[393333613,1762486262420,-800.0,0.00037715,30]
[393333614,1762486262430,-300.0,0.00037717,2]
[393333615,1762486262440,-1000.0,0.00037728,7]
[393333616,1762486262450,-500.0,0.0003773,7]
[393333617,1762486262459,-500.0,0.0003773,7]
[393333618,1762486262468,-500.0,0.0003773,7]
[393333619,1762486262478,-500.0,0.0003773,7]
[393333620,1762486262489,-500.0,0.0003773,7]
[393333621,1762486262499,-500.0,0.0003773,7]
[393333622,1762486262509,-394.01,0.0003773,7]
[393333623,1762486262519,-1000.0,0.0003773,7]
[393333624,1762486262529,-510.37,0.00037733,7]
[393333625,1762486262539,-246.98,0.00037733,120]
[393333626,1762486262549,-200.0,0.00037742,2]
[393333627,1762486262559,-200.0,0.00037742,2]
[393333628,1762486262569,-200.0,0.00037742,2]
[393333629,1762486262579,-200.0,0.00037742,2]
[393333630,1762486262588,-200.0,0.00037742,2]
[393333631,1762486262597,-200.0,0.00037742,2]
[393333632,1762486262607,-200.0,0.00037742,2]
[393333633,1762486262619,-200.0,0.00037742,2]
[393333634,1762486262629,-200.0,0.00037742,2]
[393333635,1762486262638,-200.0,0.00037742,2]
[393333636,1762486262648,-200.0,0.00037742,2]
[393333637,1762486262658,-200.0,0.00037742,2]
[393333638,1762486262667,-200.0,0.00037742,2]
[393333639,1762486262675,-200.0,0.00037742,2]
[393333640,1762486262685,-200.0,0.00037742,2]
[393333641,1762486262694,-200.0,0.00037742,2]
[393333642,1762486262703,-200.0,0.00037742,2]
[393333643,1762486262713,-200.0,0.00037742,2]
[393333644,1762486262722,-200.0,0.00037742,2]
[393333645,1762486262736,-200.0,0.00037742,2]
[393333646,1762486262746,-200.0,0.00037742,2]
[393333647,1762486262755,-200.0,0.00037742,2]
[393333648,1762486262764,-200.0,0.00037742,2]
[393333649,1762486262775,-200.0,0.00037742,2]
[393333650,1762486262784,-200.0,0.00037742,2]
[393333651,1762486262794,-200.0,0.00037742,2]
[393333652,1762486262805,-200.0,0.00037742,2]
[393333653,1762486262814,-200.0,0.00037742,2]
[393333654,1762486262824,-200.0,0.00037742,2]
[393333655,1762486262833,-200.0,0.00037742,2]
[393333656,1762486262843,-160.40840599,0.00037753,30]
[393333657,1762486262852,-300.0,0.00037754,2]
[393333658,1762486262862,-800.0,0.00037784,30]
[393333659,1762486262872,-1000.0,0.00037795,7]
[393333660,1762486262882,-1000.0,0.00037798,7]
[393333661,1762486262892,-1000.0,0.00037801,7]
[393333662,1762486262902,-1000.0,0.00037805,7]
[393333663,1762486262911,-300.0,0.00037819,86]
[393333664,1762486262921,-1000.0,0.00037834,7]
[393333665,1762486262930,-938.97212998,0.00037837,7]
[393333666,1762486262939,-824.18199952,0.00037838,30]
[393333667,1762486262949,-1000.0,0.00037854,7]
[393333668,1762486262958,-151.97898848,0.00037858,7]
[393333669,1762486262967,-1000.0,0.00037863,7]
[393333670,1762486262976,-1000.0,0.00037875,7]
[393333671,1762486262985,-199.10876962,0.0003788,2]
[393333672,1762486262994,-1167.0,0.00037886,20]
[393333673,1762486263004,-160.40840599,0.0003789,30]
[393333674,1762486263013,-287.235,0.00037911,30]
[393333675,1762486263023,-1078.35627197,0.00037911,20]
[393333676,1762486263032,-1023.62404498,0.00037911,20]
[393333677,1762486263041,-1117.67948259,0.00037911,20]
[393333678,1762486263050,-1113.78775154,0.00037911,20]
[393333679,1762486263059,-1057.78047365,0.00037911,20]
[393333680,1762486263068,-1062.53847026,0.00037911,20]
[393333681,1762486263078,-1057.90777126,0.00037911,20]
[393333682,1762486263088,-1041.02486514,0.00037911,20]
[393333683,1762486263098,-1149.30812837,0.00037911,20]
[393333684,1762486263108,-1015.07051041,0.00037911,20]
[393333685,1762486263117,-1100.74975842,0.00037911,20]
[393333686,1762486263127,-1008.04655781,0.00037911,20]
[393333687,1762486263136,-1117.69709599,0.00037911,20]
[393333688,1762486263146,-1020.47433505,0.00037911,20]
[393333689,1762486263156,-1035.62324712,0.00037911,20]
[393333690,1762486263165,-1039.36889453,0.00037911,20]
[393333691,1762486263175,-1091.93997234,0.00037911,20]
[393333692,1762486263184,-300.0,0.00037919,2]
[393333693,1762486263194,-3466.7364346,0.0003793,2]
[393333694,1762486263203,-76396.46311346,0.0003797,2]
[393333695,1762486263213,-500.0,0.00037977,30]
[393333696,1762486263222,-150.0,0.00037996,7]
[393333697,1762486263233,-9915.0,0.00038,5]
[393333698,1762486263242,-33933.0,0.00038,10]
[393333699,1762486263252,-96102.78366017,0.00038,2]
[393333700,1762486263262,-299999.999999,0.00038,2]
[393333701,1762486263271,-975.95512815,0.00038,2]
[393333702,1762486263281,-725.0,0.00038,120]
[393333703,1762486263290,-2001.34650932,0.00038,30]
[393333704,1762486263300,-1000.0,0.00038,2]
[393333705,1762486263310,-330.38164336,0.00038,30]
[393333706,1762486263320,-471.87044564,0.00038,15]
[393333707,1762486263330,-150.0,0.00038,2]
[393333708,1762486263339,-263.39951133,0.00038,3]
[393333709,1762486263348,-162.64285488,0.00038,5]
[393333710,1762486263358,-18824.32996556,0.00038,15]
[393333711,1762486263368,-1513.83,0.00038,14]
[393333712,1762486263378,-10183.45273995,0.00038,2]
[393333713,1762486263387,-3269.86408873,0.00038,120]
[393333714,1762486263397,-162.43689147,0.00038,5]
[393333715,1762486263406,-2811.55811118,0.00038,120]
[393333716,1762486263416,-189.31425318,0.00038,2]
[393333717,1762486263425,-158.0,0.00038,120]
[393333718,1762486263435,-69172.74688081,0.00038,2]
[393333719,1762486263605,500.0,0.00014999,2]
[393333720,1762486263645,500.0,0.00014999,2]
[393333721,1762486263658,-2302.71575503,0.00038,2]
[393333722,1762486263697,500.0,0.00014999,2]
[393333723,1762486263748,500.0,0.00014999,2]
[393333724,1762486263790,500.0,0.00014999,2]
[393333725,1762486263833,500.0,0.00014999,2]
[393333726,1762486263851,-752.86,0.00017999,2]
[393333727,1762486263861,-152.90961422,0.0003038,2]
[393333728,1762486263880,-454.09038578,0.0003038,2]
[393333729,1762486263890,-2005.9688902,0.00038,2]
[393333730,1762486263936,-1023.15,0.00038,2]
[393333731,1762486263977,500.0,0.00014999,2]
[393333732,1762486264018,500.0,0.00014999,2]
[393333733,1762486264067,500.0,0.00014999,2]
[393333734,1762486264107,500.0,0.00014999,2]
[393333735,1762486264148,500.0,0.00014999,2]
[393333736,1762486264191,500.0,0.00014999,2]
[393333737,1762486264231,500.0,0.00014999,2]
[393333738,1762486264271,500.0,0.00014999,2]
[393333739,1762486264314,64.07849711,0.00014999,2]
[393333740,1762486264343,435.92150289,0.00014999,2]
[393333741,1762486264393,500.0,0.00014999,2]
[393333742,1762486264488,500.0,0.00014999,2]
[393333743,1762486264529,500.0,0.00014999,2]
[393333744,1762486264569,500.0,0.00014999,2]
[393333745,1762486264609,500.0,0.00014999,2]
[393333746,1762486264656,500.0,0.00014999,2]
[393333747,1762486264696,500.0,0.00014999,2]
[393333748,1762486264738,500.0,0.00014999,2]
[393333749,1762486264777,500.0,0.00014999,2]
[393333750,1762486264818,500.0,0.00014999,2]
[393333751,1762486264862,500.0,0.00014999,2]
[393333752,1762486264911,500.0,0.00014999,2]
[393333753,1762486264951,500.0,0.00014999,2]
[393333754,1762486265035,-3525.98243845,0.00016619,2]
[393333755,1762486265054,-281.0726352,0.00016619,2]
[393333756,1762486265065,-589.34105002,0.00016619,2]
[393333757,1762486265076,-516.1526674,0.00016619,2]
[393333758,1762486265092,-362.70283048,0.00016619,2]
[393333759,1762486265438,-397.89200142,0.00016619,2]
[393333760,1762486265449,-1372.4,0.00016619,2]
[393333761,1762486265460,-13187.88097666,0.00016619,2]
[393333762,1762486265469,-500.0,0.00017698,2]
[393333763,1762486265478,-752.86,0.00017999,2]
[393333764,1762486265487,-752.86,0.00017999,2]
[393333765,1762486265496,-752.86,0.00017999,2]
[393333766,1762486265506,-500.0,0.00017999,2]
[393333767,1762486265515,-150.0,0.00018,2]
[393333768,1762486265526,-1316.0,0.0001838,2]
[393333769,1762486265535,-752.86,0.00020009,2]
[393333770,1762486265545,-752.86,0.00022887,2]
[393333771,1762486265554,-752.86,0.00024999,2]
[393333772,1762486265564,-151.257,0.00025,2]
[393333773,1762486265574,-239.35,0.00025005,2]
[393333774,1762486265584,-752.86,0.00026399,2]
[393333775,1762486265594,-752.86,0.00026999,2]
[393333776,1762486265603,-752.86,0.00026999,2]
[393333777,1762486265612,-752.86,0.00026999,2]
[393333778,1762486265623,-752.86,0.00026999,2]
[393333779,1762486265633,-752.86,0.00026999,2]
[393333780,1762486265642,-752.99510407,0.00026999,2]
[393333781,1762486265652,-498.90777968,0.000299,15]
[393333782,1762486265662,-607.0,0.0003338,2]
[393333783,1762486265671,-607.0,0.0003638,2]
[393333784,1762486265680,-85863.93220559,0.00038,2]
[393333785,1762486265706,-299.38779004,0.00017999,2]
[393333786,1762486266039,150.34480971,0.00014999,2]
[393333787,1762486266123,646.54325847,0.00014999,2]
[393333788,1762486266168,400.26180649,0.00014999,2]
[393333789,1762486273353,-500.0,0.00014999,2]
[393333790,1762486273382,-500.0,0.00014999,2]
[393333791,1762486273411,-516.85609172,0.00014999,2]
[393333792,1762486276797,500.0,0.00014999,2]
[393333793,1762486276841,500.0,0.00014999,2]
[393333794,1762486276882,500.0,0.00014999,2]
[393333795,1762486276929,500.0,0.00014999,2]
[393333796,1762486276969,500.0,0.00014999,2]
[393333797,1762486277016,500.0,0.00014999,2]
[393333798,1762486277064,500.0,0.00014999,2]
[393333799,1762486277108,500.0,0.00014999,2]
[393333800,1762486277151,500.0,0.00014999,2]
[393333801,1762486277214,500.0,0.00014999,2]
[393333802,1762486277259,500.0,0.00014999,2]
[393333803,1762486277309,500.0,0.00014999,2]
[393333804,1762486277550,500.0,0.00014999,2]
[393333805,1762486277595,466.29781656,0.00014999,2]
[393333806,1762486277621,33.70218344,0.00014999,2]
[393333807,1762486277660,500.0,0.00014999,2]
[393333808,1762486277698,500.0,0.00014999,2]
[393333809,1762486277754,500.0,0.00014999,2]
[393333810,1762486277802,500.0,0.00014999,2]
[393333811,1762486277843,500.0,0.00014999,2]
[393333812,1762486277882,500.0,0.00014999,2]
[393333813,1762486277925,500.0,0.00014999,2]
[393333814,1762486277964,500.0,0.00014999,2]
[393333815,1762486278005,500.0,0.00014999,2]
[393333816,1762486278045,500.0,0.00014999,2]
[393333817,1762486278087,500.0,0.00014999,2]
[393333818,1762486278128,500.0,0.00014999,2]
[393333819,1762486278169,500.0,0.00014999,2]
[393333820,1762486278208,500.0,0.00014999,2]
[393333821,1762486278252,500.0,0.00014999,2]
[393333822,1762486278292,548.56739636,0.00014999,2]
[393333823,1762486296388,500.0,0.00014999,2]
[393333824,1762486296432,500.0,0.00014999,2]
[393333825,1762486296476,500.0,0.00014999,2]
[393333826,1762486296517,500.0,0.00014999,2]
[393333827,1762486296555,500.0,0.00014999,2]
[393333828,1762486298884,500.0,0.00014999,2]
[393333829,1762486299118,500.0,0.00014999,2]
[393333830,1762486299372,500.0,0.00014999,2]
[393333831,1762486299606,500.0,0.00014999,2]
[393333832,1762486299851,326.32413227,0.00014999,2]
[393333833,1762486326679,500.0,0.00014999,2]
[393333834,1762486326869,500.0,0.00014999,2]
[393333835,1762486327107,500.0,0.00014999,2]
[393333836,1762486327516,500.0,0.00014999,2]
[393333837,1762486327771,500.0,0.00014999,2]
[393333838,1762486328007,234.90198442,0.00014999,2]
[393333839,1762486328285,500.0,0.00014999,2]
[393333840,1762486341364,500.0,0.00014999,2]
[393333841,1762486341636,500.0,0.00014999,2]
[393333842,1762486341869,500.0,0.00014999,2]
[393333843,1762486342100,438.78388331,0.00014999,2]
[393333844,1762486342122,61.21611669,0.00014999,2]
[393333845,1762486342343,500.0,0.00014999,2]
[393333846,1762486342603,500.0,0.00014999,2]
[393333847,1762486342857,500.0,0.00014999,2]
[393333848,1762486343110,500.0,0.00014999,2]
[393333849,1762486343381,500.0,0.00014999,2]
[393333850,1762486343874,500.0,0.00014999,2]
[393333851,1762486343920,500.0,0.00014999,2]
[393333852,1762486355017,500.0,0.00014999,2]
[393333853,1762486355247,500.0,0.00014999,2]
[393333854,1762486355610,500.0,0.00014999,2]
[393333855,1762486355881,500.0,0.00014999,2]
[393333856,1762486356144,500.0,0.00014999,2]
[393333857,1762486356372,510.89998167,0.00014999,2]
[393333858,1762486359027,150.0,0.00038686,90]
[393333859,1762486359314,150.0,0.00038686,90]
[393333860,1762486359611,150.0,0.00038686,90]
[393333861,1762486359770,500.0,0.00014999,2]
[393333862,1762486360007,500.0,0.00014999,2]
[393333863,1762486360259,500.0,0.00014999,2]
[393333864,1762486360496,500.0,0.00014999,2]
[393333865,1762486360736,500.0,0.00014999,2]
[393333866,1762486360981,500.0,0.00014999,2]
[393333867,1762486361825,427.89390164,0.00014999,2]
[393333868,1762486361857,163.71267325,0.00014999,2]
[393333869,1762486376965,500.0,0.00038686,120]
[393333870,1762486377200,500.0,0.00038686,120]
[393333871,1762486377431,500.0,0.00038686,120]
[393333872,1762486377675,500.0,0.00038686,120]
[393333873,1762486378053,500.0,0.00038686,120]
[393333874,1762486378202,500.0,0.00038686,120]
[393333875,1762486378640,500.0,0.00038686,120]
[393333876,1762486378673,500.0,0.00038686,120]
[393333877,1762486378924,500.0,0.00038686,120]
[393333878,1762486379171,500.0,0.00038686,120]
[393333879,1762486379601,155.14577219,0.00038686,120]
[393333880,1762486381403,500.0,0.00038686,30]
[393333881,1762486382056,500.0,0.00038686,30]
[393333882,1762486382371,500.0,0.00038686,30]
[393333883,1762486382624,500.0,0.00038686,30]
[393333884,1762486382878,500.0,0.00038686,30]
[393333885,1762486383110,500.0,0.00038686,30]
[393333886,1762486383345,524.16786891,0.00038686,30]
[393333888,1762486410921,8550.29011416,0.00014968,2]
[393333889,1762486416502,500.0,0.00014999,2]
[393333890,1762486416844,500.0,0.00014999,2]
[393333891,1762486417122,286.00721259,0.00014999,2]
[393333892,1762486417144,213.99278741,0.00014999,2]
[393333893,1762486417373,500.0,0.00014999,2]
[393333894,1762486417611,500.0,0.00014999,2]
[393333895,1762486417872,500.0,0.00014999,2]
[393333896,1762486418138,202.19641125,0.00014999,2]
[393333897,1762486435047,500.0,0.00014999,2]
[393333898,1762486435479,500.0,0.00014999,2]
[393333899,1762486436108,500.0,0.00014999,2]
[393333900,1762486436391,500.0,0.00014999,2]
[393333901,1762486436634,634.32527139,0.00014999,2]
[393333902,1762486460075,309.40430595,0.00014968,2]
[393333903,1762486470765,500.0,0.00014999,2]
[393333904,1762486470995,500.0,0.00014999,2]
[393333905,1762486471245,500.0,0.00014999,2]
[393333906,1762486471589,500.0,0.00014999,2]
[393333907,1762486471877,500.0,0.00014999,2]
[393333908,1762486471988,500.0,0.00014999,2]
[393333909,1762486472341,500.0,0.00014999,2]
[393333910,1762486472607,500.0,0.00014999,2]
[393333911,1762486472869,295.84,0.00014999,2]
[393333912,1762486493190,500.0,0.00014999,2]
[393333913,1762486493563,344.251224,0.00014999,2]
[393333914,1762486493587,155.748776,0.00014999,2]
[393333915,1762486493804,500.0,0.00014999,2]
[393333916,1762486494068,432.13543387,0.00014999,2]
[393333918,1762486574073,500.0,0.00014999,2]
[393333919,1762486574370,500.0,0.00014999,2]
[393333920,1762486574610,643.06949988,0.00014999,2]
[393333921,1762486576107,500.0,0.00014999,2]
[393333922,1762486576500,500.0,0.00014999,2]
[393333923,1762486576648,317.72302571,0.00014999,2]
[393333924,1762486619569,500.0,0.00014999,2]
[393333925,1762486619815,500.0,0.00014999,2]
[393333926,1762486620060,500.0,0.00014999,2]
[393333927,1762486620316,500.0,0.00014999,2]
[393333928,1762486620551,500.0,0.00014999,2]
[393333929,1762486620834,495.80122838,0.00014999,2]
[393333930,1762486664801,500.0,0.00014999,2]
[393333931,1762486665041,500.0,0.00014999,2]
[393333932,1762486665419,500.0,0.00014999,2]
[393333933,1762486665642,500.0,0.00014999,2]
[393333934,1762486665898,500.0,0.00014999,2]
[393333935,1762486666133,221.45915817,0.00014999,2]
[393333936,1762486671908,266.18326916,0.00038802,30]
[393333937,1762486701709,622.108599,0.00014999,2]
[393333938,1762486709238,500.0,0.00014999,2]
[393333939,1762486714504,1297.89,8.239e-05,2]
[393333940,1762486714701,1297.89,8.656e-05,2]
[393333941,1762486714898,564.86101445,9.072e-05,2]
[393333942,1762486714923,733.02898555,9.072e-05,2]
[393333943,1762486715136,1297.89,9.489e-05,2]
[393333944,1762486715351,1297.89,9.906e-05,2]
[393333945,1762486715593,1297.89,0.00010322,2]
[393333946,1762486715753,1297.89,0.00010739,2]
[393333947,1762486715985,1297.89,0.00011155,2]
[393333948,1762486716620,1297.89,0.00011572,2]
[393333949,1762486716894,1297.89,0.00011989,2]
[393333950,1762486717094,181.75101445,0.00012405,2]
[393333951,1762486717117,1116.13898555,0.00012405,2]
[393333952,1762486717323,1297.89,0.00012822,2]
[393333953,1762486717537,1297.89,0.00013239,2]
[393333954,1762486717943,1297.89,0.00013655,2]
[393333955,1762486718154,1297.89,0.00014072,2]
[393333956,1762486718360,1297.89,0.00014489,2]
[393333957,1762486718562,1297.89,0.00014905,2]
[393333958,1762486739994,500.0,0.00014999,2]
[393333959,1762486740235,500.0,0.00014999,2]
[393333960,1762486740483,96.53101445,0.00014999,2]
[393333961,1762486740506,403.46898555,0.00014999,2]
[393333962,1762486740716,500.0,0.00014999,2]
[393333963,1762486741067,500.0,0.00014999,2]
[393333964,1762486741303,500.0,0.00014999,2]
[393333965,1762486741548,500.0,0.00014999,2]
[393333966,1762486741814,500.0,0.00014999,2]
[393333967,1762486742054,500.0,0.00014999,2]
[393333968,1762486742300,500.0,0.00014999,2]
[393333969,1762486742533,500.0,0.00014999,2]
[393333970,1762486764555,500.0,0.00014999,2]
[393333971,1762486764806,500.0,0.00014999,2]
[393333972,1762486765042,500.0,0.00014999,2]
[393333973,1762486765316,500.0,0.00014999,2]
[393333974,1762486765566,500.0,0.00014999,2]
[393333975,1762486765828,500.0,0.00014999,2]
[393333976,1762486766084,500.0,0.00014999,2]
[393333977,1762486766306,500.0,0.00014999,2]
[393333978,1762486766551,497.37467964,0.00014999,2]
[393333979,1762486789304,206.2695373,0.00014967,2]
[393333980,1762486826551,406.94126633,0.00014999,2]
[393333981,1762486836512,-259.75805036,0.00015067,2]
[393333982,1762486836541,-300.0,0.00015067,2]
[393333983,1762486836571,-195.0,0.00015067,2]
[393333984,1762486836600,-195.0,0.00015067,2]
[393333985,1762486836629,-250.0,0.00015067,2]
[393333986,1762486836657,-188.1292432,0.00015068,2]
[393333987,1762486836689,-195.0,0.00015281,2]
[393333988,1762486836717,-1297.89,0.00015322,2]
[393333989,1762486836748,-353.12598646,0.00015396,2]
[393333990,1762486836778,-1297.89,0.00015738,2]
[393333991,1762486836821,-206.26953728,0.00015927,2]
[393333992,1762486836853,-200.0,0.00016029,2]
[393333993,1762486842432,-1297.89,0.00016155,2]
[393333994,1762486842461,-250.0,0.00016203,2]
[393333995,1762486842490,-300.0,0.00016437,2]
[393333996,1762486842518,-500.0,0.00016438,2]
[393333997,1762486842547,-1200.0,0.00016466,2]
[393333998,1762486842576,-500.0,0.00016467,2]
[393333999,1762486842604,-300.0,0.00016572,2]
[393334000,1762486842634,-300.0,0.00016572,2]
[393334001,1762486848552,-1200.0,0.00016573,2]
[393334002,1762486848581,-150.0,0.00016573,2]
[393334003,1762486848610,-250.0,0.00016574,2]
[393334004,1762486848639,-300.0,0.00016574,2]
[393334005,1762486848668,-300.0,0.00016574,2]
[393334006,1762486848697,-300.0,0.00016574,2]
[393334007,1762486848727,-300.0,0.00016574,2]
[393334008,1762486848756,-300.0,0.00016574,2]
[393334009,1762486848784,-195.0,0.00016574,2]
[393334010,1762486848811,-1577.67249676,0.00016574,2]
[393334011,1762486881793,-500.0,0.00014999,2]
[393334012,1762486881821,-500.0,0.00014999,2]
[393334013,1762486881849,-500.0,0.00014999,2]
[393334014,1762486881876,-386.21632906,0.00014999,2]
[393334015,1762486885045,500.0,0.00014999,2]
[393334016,1762486885551,500.0,0.00014999,2]
[393334017,1762486885609,500.0,0.00014999,2]
[393334018,1762486885879,500.0,0.00014999,2]
[393334019,1762486886128,500.0,0.00014999,2]
[393334020,1762486886359,500.0,0.00014999,2]
[393334022,1762486990704,747.34,0.00013699,2]
[393334023,1762487068676,-166.66440493,0.00015,2]
[393334024,1762487117052,1000.0,0.00038744,30]
[393334025,1762487117298,417.87387881,0.00038744,30]
[393334026,1762487140182,627.0,0.00038744,30]
[393334027,1762487233773,-150.0,0.00016224,2]
[393334028,1762487233807,-250.0,0.00016349,2]
[393334029,1762487233842,-250.0,0.00016459,2]
[393334030,1762487233877,-171.07018412,0.00016474,2]
[393334031,1762487233911,-298.05260871,0.00016499,2]
[393334032,1762487233943,-300.0,0.000165,2]
[393334033,1762487233979,-195.0,0.000165,2]
[393334034,1762487234012,-182.50848605,0.00016679,2]
[393334035,1762487234047,-255.29,0.00016779,2]
[393334036,1762487234085,-1200.0,0.00016872,2]
[393334037,1762487234119,-300.0,0.00016885,2]
[393334038,1762487234151,-1200.0,0.00016885,2]
[393334039,1762487234184,-182.50848605,0.00016886,2]
[393334040,1762487234596,-279.795,0.00016886,2]
[393334041,1762487234832,-4067.1465,0.00016886,2]
[393334042,1762487252551,269.0427697,0.00016272,2]
[393334043,1762487261684,1200.0,0.00016885,2]
[393334044,1762487281440,300.0,0.00016885,2]
[393334045,1762487291818,168.23,0.00016864,2]
[393334051,1762487323081,16839.6998569,0.00038744,30]
[393334052,1762487370492,3056.05,0.00016868,2]
[393334053,1762487381713,500.0,0.00038749,30]
[393334054,1762487381950,500.0,0.00038749,30]
[393334055,1762487382624,5006.6872303,0.00016272,2]
[393334056,1762487383494,500.0,0.00038749,30]
[393334062,1762487431340,-300.0,0.00016271,2]
[393334063,1762487431350,-300.0,0.00016271,2]
[393334064,1762487431359,-1200.0,0.00016271,2]
[393334065,1762487431368,-91751.7755759,0.00016272,2]
[393334066,1762487431377,-12326.8125,0.00016886,2]
[393334067,1762487431386,-250.0,0.00016904,2]
[393334068,1762487431395,-300.0,0.00016904,2]
[393334069,1762487431405,-195.0,0.00016923,2]
[393334070,1762487431414,-300.0,0.00016939,2]
[393334071,1762487431424,-300.0,0.00016939,2]
[393334072,1762487431434,-195.0,0.00016954,2]
[393334073,1762487431443,-2106.6957,0.00016959,2]
[393334074,1762487431453,-502.73555537,0.00016973,2]
[393334075,1762487431463,-500.0,0.00016973,2]
[393334076,1762487431472,-500.0,0.00016973,2]
[393334077,1762487431482,-500.0,0.00016973,2]
[393334078,1762487431492,-500.0,0.00016973,2]
[393334079,1762487431501,-500.0,0.00016973,2]
[393334080,1762487431511,-566.03408857,0.00016973,2]
[393334081,1762487431521,-500.0,0.00016973,2]
[393334082,1762487431531,-500.0,0.00016973,2]
[393334083,1762487431540,-500.99289693,0.00016973,2]
[393334084,1762487431550,-500.0,0.00016973,2]
[393334085,1762487431560,-175.41342422,0.00016973,2]
[393334086,1762487431569,-500.0,0.00016973,2]
[393334087,1762487431578,-527.74056507,0.00016973,2]
[393334088,1762487431588,-500.52187135,0.00016973,2]